lending/lending_fUSD_20240622
["ID","MTS","AMOUNT","RATE_DAILY","PERIOD"]
[330149817,1719061833632,-250.0,0.00019315,2]
[330149818,1719061833642,-924.09,0.00019315,2]
[330149819,1719061833652,-250.0,0.00019348,2]
[330149820,1719061833661,-256.76,0.0001941,2]
[330149821,1719061833671,-473.88,0.00019676,2]
[330149822,1719061833680,-172.957563,0.00019706,2]
[330149823,1719061833689,-185.83,0.00019991,2]
[330149824,1719061833698,-185.83,0.00019996,2]
[330149825,1719061833708,-185.83,0.00020002,2]
[330149826,1719061833716,-185.83,0.00020007,2]
[330149827,1719061833725,-185.83,0.00020012,2]
[330149828,1719061833734,-185.83,0.00020018,2]
[330149829,1719061833754,-185.83,0.00020023,2]
[330149830,1719061833765,-185.83,0.00020028,2]
[330149831,1719061833776,-185.83,0.00020033,2]
[330149832,1719061833786,-185.83,0.00020039,2]
[330149833,1719061833796,-185.83,0.00020044,2]
[330149834,1719061833806,-3312.05101787,0.00020048,2]
[330149835,1719061833966,-408.28683777,0.00020048,2]
[330149836,1719061834002,-364.67036088,0.00020048,2]
[330149837,1719061834164,-2015.05034501,0.00020048,2]
[330149838,1719061834176,-4434.3686845,0.00020048,2]
[330149839,1719061834186,-185.83,0.00020049,2]
[330149840,1719061834196,-6070.923,0.00020049,2]
[330149841,1719061834206,-185.83,0.00020054,2]
[330149842,1719061834216,-185.83,0.0002006,2]
[330149843,1719061834226,-185.83,0.00020065,2]
[330149844,1719061834236,-185.83,0.0002007,2]
[330149845,1719061834245,-135.40185054,0.00020075,2]
[330149847,1719061838344,-50.42814946,0.00020075,2]
[330149848,1719061838354,-185.83,0.00020081,2]
[330149849,1719061838364,-185.83,0.00020086,2]
[330149850,1719061838375,-185.83,0.00020091,2]
[330149851,1719061838385,-191.48,0.0002021,2]
[330149852,1719061838395,-150.0,0.00020415,2]
[330149853,1719061838405,-172.957563,0.00020691,2]
[330149854,1719061838417,-1127.23122443,0.00020747,2]
[330149855,1719061838426,-710.02709588,0.00020776,2]
[330149856,1719061838439,-406.3937565,0.00020776,2]
[330149857,1719061838451,-22.18893938,0.00020776,2]
[330149858,1719061838461,-1030.85383481,0.00020776,2]
[330149859,1719061838471,-477.3035087,0.0002099,2]
[330149860,1719061838482,-1250.0,0.00021,2]
[330149861,1719061838491,-2500.0,0.00021,2]
[330149862,1719061838502,-552.62070963,0.00021,3]
[330149863,1719061838511,-200.0,0.00021028,2]
[330149864,1719061838521,-852.68,0.00021068,2]
[330149865,1719061838531,-418.32,0.00021068,2]
[330149866,1719061838541,-852.68,0.00021068,2]
[330149867,1719061838550,-418.32,0.00021068,2]
[330149868,1719061838561,-852.68,0.00021068,2]
[330149869,1719061838571,-418.32,0.00021068,2]
[330149870,1719061838581,-852.68,0.00021068,2]
[330149871,1719061838591,-418.32,0.00021068,2]
[330149872,1719061838602,-418.32,0.00021068,2]
[330149873,1719061838612,-403.32,0.00021068,2]
[330149875,1719061838622,-415.98,0.00021068,2]
[330149877,1719061838632,-2218.0335,0.00021068,2]
[330149878,1719061838641,-813.63435719,0.0002108,2]
[330149879,1719061838666,-362.26956143,0.0002108,2]
[330149880,1719061838678,-2653.01980657,0.0002108,2]
[330149882,1719061838707,-2642.61354803,0.0002108,2]
[330149883,1719061838719,-3123.53,0.0002108,2]
[330149884,1719061838731,-2807.17858716,0.0002108,2]
[330149885,1719061838743,-498.35828287,0.0002108,2]
[330149886,1719061838771,-1801.8322682,0.0002108,2]
[330149887,1719061838783,-4095.98626351,0.0002108,2]
[330149888,1719061838795,-535.43603324,0.0002108,2]
[330149897,1719061840528,-392.81867034,0.0002108,2]
[330149898,1719061840540,-515.1,0.0002108,2]
[330149899,1719061840609,-56054.88385569,0.0002108,2]
[330149900,1719061840813,-33641.74696577,0.0002108,2]
[330149901,1719061840823,-317.28800316,0.00021086,2]
[330149902,1719061840834,-334.5742,0.0002109,2]
[330149903,1719061840844,-192.72568968,0.00021095,2]
[330149904,1719061840856,-354.448723,0.00021096,2]
[330149905,1719061840880,-16982.062,0.000211,2]
[330149906,1719061840890,-30134.8819,0.000211,2]
[330149907,1719061840899,-164.11273036,0.000211,2]
[330149908,1719061840909,-1000.0,0.000211,2]
[330149909,1719061840919,-13318.57995291,0.000211,2]
[330149910,1719061840930,-7500.0,0.000211,2]
[330149911,1719061840940,-197.76863707,0.000211,3]
[330149912,1719061840950,-1663.14278457,0.000211,2]
[330149913,1719061840959,-4951.47387566,0.000211,2]
[330149914,1719061840968,-47914.2850027,0.0002117,3]
[330149915,1719061840977,-18701.9898046,0.0002117,3]
[330149916,1719061840990,-35572.17378315,0.0002117,3]
[330149969,1719061843493,-4366.79439201,0.0002117,3]
[330149983,1719061844246,-0.00597437,0.0002117,3]
[330149987,1719061846438,-981.42113805,0.0002117,3]
[330149988,1719061846450,-2966.55429092,0.0002117,3]
[330149989,1719061846459,-25979.25050908,0.0002118,3]
[330149990,1719061846699,-5310.23009822,0.0002118,3]
[330150007,1719061992667,200.0,0.00025907,120]
[330150008,1719061995775,1000.0,0.00025907,120]
[330150009,1719062260128,158.5,0.00024737,120]
[330150019,1719063031664,-445.42,0.00017769,2]
[330150020,1719063031674,-300.0,0.00019606,2]
[330150021,1719063031683,-150.0,0.00019606,2]
[330150022,1719063031692,-751.68744656,0.00019607,2]
[330150023,1719063031704,-522.07708951,0.00019607,2]
[330150024,1719063031716,-1063.79126393,0.00019607,2]
[330150025,1719063031725,-800.0,0.00019634,2]
[330150026,1719063031735,-189.09362772,0.0001965,2]
[330150027,1719063031748,-754.06637228,0.0001965,2]
[330150028,1719063031758,-200.0,0.00019665,2]
[330150029,1719063031767,-191.48,0.0001967,2]
[330150030,1719063031776,-1500.0,0.00019675,5]
[330150031,1719063031786,-250.0,0.00019682,2]
[330150032,1719063031795,-250.0,0.00019688,2]
[330150033,1719063031804,-271.2,0.000197,2]
[330150034,1719063031814,-172.826601,0.00019707,2]
[330150035,1719063031824,-207.391922,0.00019707,2]
[330150036,1719063031835,-205.39,0.00019711,2]
[330150037,1719063031844,-158.5,0.00019789,2]
[330150038,1719063031854,-207.391922,0.00019954,2]
[330150039,1719063031865,-445.42,0.00020033,2]
[330150040,1719063031874,-207.391922,0.000202,2]
[330150041,1719063031883,-207.391922,0.00020446,2]
[330150042,1719063031892,-834.23,0.00020521,2]
[330150043,1719063031902,-1304.0,0.00020609,2]
[330150044,1719063031911,-1258.24596444,0.00020609,2]
[330150045,1719063031924,-1035.17422718,0.00020609,2]
[330150046,1719063031950,-116.57980838,0.00020609,2]
[330150047,1719063031961,-547.0,0.00020609,2]
[330150048,1719063031971,-133.7941991,0.00020609,2]
[330150049,1719063031983,-819.28,0.00020609,2]
[330150050,1719063031996,-2240.9258009,0.00020609,2]
[330150051,1719063032005,-359.0,0.00020609,2]
[330150052,1719063032015,-290.0,0.00020609,2]
[330150053,1719063032025,-1830.0,0.00020609,2]
[330150054,1719063032034,-5163.0,0.00020609,2]
[330150055,1719063032043,-10806.682,0.00020609,2]
[330150056,1719063032052,-442.0,0.00020609,2]
[330150057,1719063032062,-447.0,0.00020609,2]
[330150058,1719063032071,-1762.857,0.00020609,2]
[330150059,1719063032081,-172.826601,0.00020693,2]
[330150060,1719063032092,-207.391922,0.00020693,2]
[330150061,1719063032101,-1051.94788004,0.00020756,2]
[330150062,1719063032112,-156.7676,0.0002088,2]
[330150063,1719063032123,-155.0,0.00020978,2]
[330150064,1719063032133,-995.8186,0.0002098,2]
[330150065,1719063032143,-7366.11,0.00020987,2]
[330150066,1719063032153,-500.0,0.00021,2]
[330150067,1719063032162,-1250.0,0.00021,2]
[330150068,1719063032171,-500.0,0.00021026,2]
[330150069,1719063032182,-200.0,0.00021026,2]
[330150070,1719063032192,-7438.04,0.00021068,2]
[330150071,1719063032202,-47987.32236521,0.0002107,2]
[330150072,1719063032216,-935.99632994,0.0002107,2]
[330150073,1719063032241,-317.65,0.0002107,2]
[330150074,1719063032257,-380.03886704,0.0002107,2]
[330150075,1719063032269,-378.99243781,0.0002107,2]
[330150076,1719063032279,-1253.62121117,0.00021079,2]
[330150077,1719063032290,-159.40130325,0.00021079,2]
[330150078,1719063032300,-152.74124027,0.0002109,2]
[330150079,1719063032310,-192.72568968,0.0002109,2]
[330150080,1719063032320,-1000.0,0.0002109,2]
[330150081,1719063032334,-176.13900663,0.00021095,2]
[330150082,1719063032343,-1285.40729279,0.00021098,2]
[330150083,1719063032353,-7500.0,0.00021099,2]
[330150084,1719063032364,-330.9170608,0.00021099,2]
[330150093,1719063037682,-617.0,0.00020609,2]
[330150094,1719063037692,-166.0,0.00020609,2]
[330150095,1719063037702,-154.72618634,0.00021079,2]
[330150096,1719063037712,-318.54438855,0.00021089,2]
[330150097,1719063037722,-11877.78122945,0.00021099,2]
[330150098,1719063037732,-258.55511764,0.00021099,2]
[330150099,1719063037742,-179.93235076,0.00021099,2]
[330150100,1719063037752,-197.76863706,0.00021099,3]
[330150101,1719063037762,-166.89805808,0.000211,2]
[330150102,1719063037772,-1342.84412,0.000211,2]
[330150103,1719063037782,-354.283349,0.000211,3]
[330150104,1719063037792,-152.74124027,0.000211,2]
[330150105,1719063037801,-1108.76185638,0.000211,2]
[330150106,1719063037811,-164541.737618,0.00021179,3]
[330150107,1719063037820,-37528.68252161,0.00021179,3]
[330150108,1719063037845,-468.50164004,0.00021179,3]
[330150109,1719063037856,-2473.81855127,0.00021179,3]
[330150110,1719063037869,-369.90456315,0.00021179,3]
[330150111,1719063037904,-207.74763213,0.00021179,3]
[330150112,1719063037914,-151.35,0.00021179,2]
[330150113,1719063037924,-7369.74,0.0002118,2]
[330150114,1719063037934,-3624.22211744,0.0002118,3]
[330150115,1719063037946,-479.24999973,0.0002118,3]
[330150116,1719063037958,-994.53623725,0.0002118,3]
[330150117,1719063037970,-1093.39984685,0.0002118,3]
[330150118,1719063037996,-6697.84166771,0.0002118,3]
[330150119,1719063038009,-12424.86361082,0.0002118,3]
[330150120,1719063038018,-2915.76700567,0.0002118,3]
[330150132,1719063039664,-1068.0,0.00020609,2]
[330150134,1719063039674,-17608.56044843,0.0002118,3]
[330150136,1719063039684,-37971.1702196,0.00021189,3]
[330150137,1719063039694,-8605.43013197,0.00021189,3]
[330150139,1719063039706,-5360.44557349,0.00021189,3]
[330150144,1719063039767,-14453.14132,0.00021189,3]
[330150145,1719063039911,-45922.5163332,0.00021189,3]
[330150146,1719063039924,-1508.7644094,0.00021189,3]
[330150147,1719063039997,-671.80019193,0.00021189,3]
[330150148,1719063040010,-15912.999,0.00021189,3]
[330150149,1719063040022,-886.12730972,0.00021189,3]
[330150150,1719063040033,-387.33286517,0.00021189,3]
[330150151,1719063040045,-42430.95738175,0.00021189,3]
[330150152,1719063040089,-16695.15300665,0.00021189,3]
[330150153,1719063040101,-229425.06621506,0.00021189,3]
[330150154,1719063040113,-171897.10752266,0.00021189,3]
[330150155,1719063040123,-151.35,0.00021189,2]
[330150156,1719063040134,-151.35,0.00021189,2]
[330150157,1719063040143,-151.35,0.00021189,2]
[330150158,1719063040153,-151.35,0.00021189,2]
[330150159,1719063040164,-151.35,0.00021189,2]
[330150160,1719063040174,-526.0,0.0002119,2]
[330150161,1719063040184,-31408.12,0.0002119,2]
[330150162,1719063040194,-151.35,0.0002119,2]
[330150163,1719063040203,-151.35,0.0002119,2]
[330150165,1719063040213,-151.35,0.0002119,2]
[330150167,1719063040222,-738.09003768,0.00021195,2]
[330150169,1719063040232,-256834.13678027,0.00021199,2]
[330150171,1719063040244,-1995.38893036,0.00021199,2]
[330150173,1719063040259,-708.92511709,0.00021199,2]
[330150175,1719063040271,-1194.48351368,0.00021199,2]
[330150177,1719063040283,-8718.39890091,0.00021199,2]
[330150180,1719063040295,-750.72000001,0.00021199,2]
[330150182,1719063040307,-1156.68,0.00021199,2]
[330150205,1719063042595,-183.08479486,0.00021099,2]
[330150207,1719063042605,-896.28435434,0.00021199,2]
[330150210,1719063042700,-1527744.98331354,0.00021199,2]
[330150211,1719063042710,-692783.82385663,0.00021199,7]
[330150212,1719063042720,-611064.80959474,0.000212,4]
[330150213,1719063042732,-2177.31416717,0.000212,4]
[330150214,1719063042812,-770.78849244,0.000212,4]
[330150215,1719063042824,-1596.30903577,0.000212,4]
[330150216,1719063042955,-500.32600203,0.000212,4]
[330150217,1719063042968,-7788.38031696,0.000212,4]
[330150218,1719063045625,-356.97966249,0.00020776,2]
[330150219,1719063045638,-672.13308514,0.00020776,2]
[330150220,1719063045648,-369.04501884,0.00021198,2]
[330150221,1719063045659,-4660.92624026,0.000212,4]
[330150222,1719063045755,-7584.0,0.000212,4]
[330150223,1719063045860,-11356.31233505,0.000212,4]
[330150224,1719063045874,-811.34468112,0.000212,4]
[330150225,1719063045886,-1981.0,0.000212,4]
[330150226,1719063045897,-281.00881241,0.000212,4]
[330150227,1719063045910,-2992.58418103,0.000212,4]
[330150228,1719063045979,-500.0,0.000212,4]
[330150229,1719063045991,-333.55822375,0.000212,4]
[330150233,1719063193711,202.986848,0.00025907,120]
[330150234,1719063196501,1000.0,0.00025907,120]
[330150235,1719063245287,2266.18326319,0.000118,2]
[330150244,1719064231788,-1000.0,0.000135,2]
[330150245,1719064231797,-1128.25909008,0.000139,2]
[330150246,1719064231809,-319.03298288,0.000139,2]
[330150247,1719064231818,-1023.21695003,0.00013988,2]
[330150248,1719064231827,-2003.58276438,0.00013989,2]
[330150249,1719064231836,-151.36,0.0001399,2]
[330150251,1719064231845,-150.0,0.00013999,2]
[330150252,1719064231854,-519.86065789,0.00013999,2]
[330150253,1719064231863,-925.40024813,0.00014,2]
[330150254,1719064231875,-2001.76069057,0.00014,2]
[330150255,1719064232008,-124097.91810055,0.00014,2]
[330150256,1719064232022,-9759.59985001,0.00014,2]
[330150257,1719064232034,-966.43463374,0.00014,2]
[330150258,1719064232045,-463.61871879,0.00014,2]
[330150259,1719064232058,-968.08911481,0.00014,2]
[330150260,1719064232069,-739.69628748,0.00014,2]
[330150261,1719064232080,-1414.36815207,0.00014,2]
[330150262,1719064232091,-6310.96790771,0.00014,2]
[330150263,1719064232105,-118322.08981995,0.00014,2]
[330150268,1719064232164,-399425.7643172,0.00014,2]
[330150269,1719064232176,-3253.25,0.00014,2]
[330150270,1719064232187,-6827.34329163,0.00014,2]
[330150271,1719064232199,-1036.54118653,0.00014,2]
[330150272,1719064232210,-353.79,0.00014,2]
[330150273,1719064232221,-679.73,0.00014,2]
[330150274,1719064232233,-2852.80510775,0.00014,2]
[330150280,1719064238056,-80165.76011642,0.00014,2]
[330150284,1719064238237,-11065.83642395,0.00014,2]
[330150285,1719064238248,-4259.9738215,0.00014,2]
[330150286,1719064238260,-261.60991084,0.00014,2]
[330150287,1719064238271,-13234.8,0.00014,2]
[330150288,1719064238398,-799.56334722,0.00014,2]
[330150289,1719064238410,-2702.22081626,0.00014,2]
[330150290,1719064238422,-25823.8941717,0.00014,2]
[330150291,1719064238434,-313.999999,0.00014,2]
[330150292,1719064238445,-2501.34418487,0.00014,2]
[330150299,1719064240514,-8889.91640812,0.00014,2]
[330150300,1719064240526,-26827.7554927,0.00014,2]
[330150301,1719064240538,-1720.67636963,0.00014,2]
[330150302,1719064240568,-400.07483383,0.00014,2]
[330150303,1719064240579,-2612.27654001,0.00014,2]
[330150304,1719064240633,-853.28671926,0.00014,2]
[330150305,1719064240645,-876.0728081,0.00014,2]
[330150306,1719064240656,-27785.99999997,0.00014,2]
[330150319,1719064243362,-54958.82654384,0.00014,2]
[330150320,1719064243373,-2910.75487547,0.00014,2]
[330150321,1719064243384,-31527.22120152,0.00014,2]
[330150322,1719064243395,-32802.6421093,0.00014,2]
[330150323,1719064243407,-341563.72126891,0.00014,2]
[330150324,1719064243416,-150.0,0.00014,2]
[330150325,1719064243425,-4849.26,0.00014033,2]
[330150326,1719064243435,-589.59903905,0.00014033,2]
[330150327,1719064243445,-11345.65473046,0.00014034,2]
[330150328,1719064243454,-487.26,0.00014134,2]
[330150329,1719064243463,-158.5,0.00014281,2]
[330150330,1719064243473,-887.68380317,0.00014303,2]
[330150331,1719064243482,-700.0,0.000145,2]
[330150332,1719064243492,-707.28,0.000145,2]
[330150333,1719064243502,-172.99,0.00014814,2]
[330150334,1719064243511,-499.99,0.00014814,2]
[330150335,1719064243520,-11345.65473038,0.00014839,2]
[330150336,1719064243530,-344.74,0.00014882,2]
[330150338,1719064243539,-1128.25909001,0.00014899,2]
[330150339,1719064243549,-166.89805806,0.000149,2]
[330150340,1719064243558,-274.18,0.00014904,2]
[330150341,1719064243568,-3515.42132678,0.00014924,2]
[330150342,1719064243576,-739.17457092,0.00014924,2]
[330150343,1719064243586,-151.36,0.0001499,2]
[330150344,1719064243595,-151.36,0.0001499,2]
[330150345,1719064243604,-151.36,0.0001499,2]
[330150346,1719064243613,-151.36,0.0001499,2]
[330150347,1719064243623,-151.36,0.0001499,2]
[330150348,1719064243633,-151.36,0.0001499,2]
[330150349,1719064243642,-2882795.77136944,0.00015,2]
[330150350,1719064243654,-655.0,0.00015,2]
[330150351,1719064243667,-511.92698962,0.00015,2]
[330150352,1719064243681,-740.52681752,0.00015,2]
[330150353,1719064243693,-7290.45079688,0.00015,2]
[330150354,1719064243705,-2123.95717,0.00015,2]
[330150355,1719064243831,-168776.53353501,0.00015,2]
[330150356,1719064243842,-187500.0,0.00015,2]
[330150357,1719064243855,-6555.6,0.00015,2]
[330150358,1719064243866,-748.724,0.00015,2]
[330150359,1719064243894,-7966.45742432,0.00015,2]
[330150360,1719064243906,-884.18795845,0.00015,2]
[330150361,1719064243918,-444.24779552,0.00015,2]
[330150362,1719064243931,-7095.17567049,0.00015,2]
[330150363,1719064243942,-6644.55524363,0.00015,2]
[330150398,1719064245998,-1225.60038168,0.00015,2]
[330150399,1719064246010,-1733.56544275,0.00015,2]
[330150400,1719064246022,-9002.38995115,0.00015,2]
[330150401,1719064246034,-371.92879527,0.00015,2]
[330150402,1719064246046,-12880.56494279,0.00015,2]
[330150403,1719064246057,-250.10479714,0.00015,2]
[330150404,1719064246069,-28860.47167821,0.00015,2]
[330150405,1719064246170,-12889.70002755,0.00015,2]
[330150406,1719064246182,-764043.99207547,0.00015,2]
[330150407,1719064246193,-2197.79675111,0.00015,2]
[330150408,1719064246204,-907.5,0.00015,2]
[330150409,1719064246216,-440.7467702,0.00015,2]
[330150410,1719064246228,-7054.51584762,0.00015,2]
[330150411,1719064246426,-560.52287682,0.00015,2]
[330150412,1719064246438,-1523.78274965,0.00015,2]
[330150413,1719064246450,-918.75679,0.00015,2]
[330150414,1719064246462,-2122.59470048,0.00015,2]
[330150415,1719064396627,1023.165078,0.00025969,120]
[330150416,1719064600538,200.0,0.00025,30]
[330150417,1719064627408,207.11,0.00025,30]
[330150418,1719064909092,440.06,0.00012661,2]
[330150420,1719065269485,37709.41072863,0.00026,120]
[330150450,1719065432217,-1000.0,0.00014078,2]
[330150451,1719065432227,-182.69,0.00014174,2]
[330150452,1719065432238,-1076.78975856,0.0001419,2]
[330150453,1719065432250,-28.79024144,0.0001419,2]
[330150454,1719065432260,-221.82,0.00014325,2]
[330150455,1719065432270,-200.0,0.000145,5]
[330150456,1719065432280,-250.0,0.00014541,2]
[330150457,1719065432291,-99.38975856,0.00014553,2]
[330150458,1719065432302,-718.42740746,0.00014553,2]
[330150459,1719065432313,-1034.60283398,0.00014553,2]
[330150460,1719065432323,-1786.36,0.00014593,2]
[330150461,1719065432332,-156.18,0.000146,2]
[330150462,1719065432341,-500.0,0.000146,5]
[330150463,1719065432350,-150.0,0.00014628,2]
[330150464,1719065432359,-300.0,0.00014628,2]
[330150465,1719065432368,-300.0,0.00014628,2]
[330150466,1719065432377,-7398.67463452,0.00014629,2]
[330150467,1719065432388,-1324.76351156,0.00014629,2]
[330150468,1719065432399,-15176.56185392,0.00014629,2]
[330150469,1719065432409,-463.29,0.00014629,2]
[330150470,1719065432418,-167.61,0.00014634,2]
[330150471,1719065432428,-182.67,0.00014654,2]
[330150472,1719065432438,-800.0,0.000147,5]
[330150473,1719065432447,-1000.0,0.000148,5]
[330150474,1719065432456,-1300.0,0.000149,5]
[330150475,1719065432465,-939.77799337,0.000149,2]
[330150476,1719065432475,-319.53205178,0.000149,2]
[330150477,1719065432484,-151.95189317,0.000149,2]
[330150478,1719065432493,-492.78304728,0.000149,2]
[330150479,1719065432502,-443.22589633,0.00014901,2]
[330150480,1719065432512,-169.32021853,0.00014902,2]
[330150481,1719065432521,-9454.71227539,0.00014902,2]
[330150482,1719065432531,-4704.38,0.00014902,2]
[330150483,1719065432541,-698.91607848,0.00014907,2]
[330150484,1719065432551,-440.06,0.00014925,2]
[330150485,1719065432559,-42962.10287422,0.00015,2]
[330150488,1719065432599,-571.61940899,0.00015,2]
[330150490,1719065432611,-909.67996557,0.00015,2]
[330150491,1719065432624,-28817.48132769,0.00015,2]
[330150492,1719065432635,-582.92504737,0.00015,2]
[330150493,1719065432646,-384930.99036316,0.00015,2]
[330150514,1719065440248,-38935.72141899,0.00015,2]
[330150515,1719065440465,-3200.0,0.00015,2]
[330150516,1719065440477,-771.43017643,0.00015,2]
[330150525,1719065443584,-2829.91692382,0.00015,2]
[330150526,1719065443595,-3193.54127917,0.00015,2]
[330150527,1719065443627,-917.79,0.00015,2]
[330150536,1719065446428,-51210.87853118,0.00015,2]
[330150537,1719065446524,-127948.20984201,0.00015,2]
[330150538,1719065446535,-219353.3369748,0.00015,2]
[330150539,1719065446658,-721.76064,0.00015,2]
[330150540,1719065446670,-2574.03704164,0.00015,2]
[330150546,1719066026811,172.03,0.00018849,30]
[330150547,1719066027172,172.03,0.00023831,30]
[330150550,1719066106851,533.03,0.0001134,2]
[330150558,1719066395302,6076.77,0.00012807,2]
[330150560,1719066447194,940.64,0.00012843,2]
[330150562,1719066465898,376.65,0.00012858,2]
[330150564,1719066480382,9118.78,0.00012852,2]
[330150565,1719066488194,953.28,0.00012856,2]
[330150574,1719066553638,759.11,0.00025,90]
[330150575,1719066585474,250.0,0.0001283,2]
[330150586,1719066632452,-326.5417784,0.0001301,2]
[330150587,1719066632464,-357.2307216,0.0001301,2]
[330150588,1719066632475,-294.87759736,0.00013011,2]
[330150589,1719066632485,-150.0,0.0001311,2]
[330150590,1719066632495,-806.97001072,0.00013111,2]
[330150591,1719066632506,-551.29288503,0.00013111,2]
[330150592,1719066632523,-447.68092145,0.00013111,2]
[330150593,1719066632536,-22094.0561828,0.00013111,2]
[330150594,1719066632547,-8489.9538332,0.00013121,2]
[330150595,1719066632678,-63.9061668,0.00013121,2]
[330150596,1719066632689,-587.74952374,0.00013143,2]
[330150597,1719066632702,-2207.07047626,0.00013143,2]
[330150598,1719066632713,-1840.46,0.00013145,2]
[330150599,1719066632725,-2472.46952374,0.00013168,2]
[330150600,1719066632739,-1135.31489135,0.00013168,2]
[330150601,1719066632750,-8471.03558491,0.00013168,2]
[330150602,1719066632761,-459.73,0.00013187,2]
[330150603,1719066632772,-150.0,0.00013193,2]
[330150604,1719066632783,-459.73,0.00013223,2]
[330150605,1719066632794,-250.0,0.00013234,2]
[330150606,1719066632804,-393.23,0.00013251,2]
[330150607,1719066632814,-33292.47,0.00013253,2]
[330150608,1719066632823,-459.73,0.00013259,2]
[330150609,1719066632833,-200.0,0.00013274,2]
[330150610,1719066632843,-177.74,0.00013286,2]
[330150611,1719066632854,-459.73,0.00013295,2]
[330150612,1719066632864,-167.65,0.00013299,2]
[330150613,1719066632873,-459.73,0.00013332,2]
[330150614,1719066632884,-3648.65,0.00013363,2]
[330150615,1719066632893,-459.73,0.00013368,2]
[330150616,1719066632903,-459.73,0.00013404,2]
[330150618,1719066632913,-459.73,0.0001344,2]
[330150620,1719066632923,-459.73,0.00013476,2]
[330150622,1719066632932,-150.0,0.00013488,2]
[330150624,1719066632942,-459.73,0.00013512,2]
[330150625,1719066632952,-459.73,0.00013549,2]
[330150626,1719066632961,-459.73,0.00013585,2]
[330150627,1719066632971,-533.03,0.00013604,2]
[330150628,1719066632980,-459.73,0.00013621,2]
[330150629,1719066632990,-459.73,0.00013657,2]
[330150630,1719066633000,-176.49,0.00013677,2]
[330150631,1719066633010,-151.73,0.00013684,2]
[330150632,1719066633020,-151.73,0.00013688,2]
[330150633,1719066633029,-151.73,0.00013691,2]
[330150634,1719066633039,-369.21,0.00013691,2]
[330150635,1719066633049,-1429.93,0.00013691,2]
[330150636,1719066633059,-459.73,0.00013693,2]
[330150637,1719066633068,-151.73,0.00013695,2]
[330150638,1719066633078,-167.63,0.00013699,2]
[330150639,1719066633087,-2945.23,0.00013699,2]
[330150640,1719066633097,-2751.0,0.00013699,2]
[330150641,1719066633107,-200.0,0.00013699,2]
[330150642,1719066633118,-485.7,0.00013699,2]
[330150643,1719066633127,-151.73,0.00013699,2]
[330150644,1719066633136,-151.73,0.00013703,2]
[330150645,1719066633146,-151.73,0.00013707,2]
[330150646,1719066633155,-151.73,0.00013711,2]
[330150647,1719066633165,-151.73,0.00013714,2]
[330150648,1719066633174,-151.73,0.00013718,2]
[330150649,1719066633184,-529.64495973,0.00013719,2]
[330150650,1719066633193,-151.73,0.00013722,2]
[330150651,1719066633203,-151.73,0.00013726,2]
[330150652,1719066633212,-459.73,0.00013729,2]
[330150653,1719066633222,-151.73,0.0001373,2]
[330150654,1719066633232,-151.73,0.00013733,2]
[330150655,1719066633242,-151.73,0.00013737,2]
[330150656,1719066633251,-151.73,0.00013741,2]
[330150657,1719066633261,-151.73,0.00013745,2]
[330150658,1719066633272,-151.73,0.00013749,2]
[330150659,1719066633281,-151.73,0.00013752,2]
[330150660,1719066633291,-459.73,0.00013766,2]
[330150661,1719066633300,-459.73,0.00013802,2]
[330150662,1719066633310,-459.73,0.00013838,2]
[330150663,1719066633319,-459.73,0.00013874,2]
[330150664,1719066633329,-13666.19942655,0.0001398,2]
[330150665,1719066633338,-280.45,0.0001398,3]
[330150666,1719066633348,-841.37,0.0001398,3]
[330150667,1719066633357,-10763.91191026,0.0001399,2]